fUST/lending_fUST_20250309
["ID","MTS","AMOUNT","RATE_DAILY","PERIOD"]
[355752249,1741531854463,-500.0,0.00048219,120]
[355752250,1741531854472,-565.34,0.00048219,120]
[355752251,1741531854482,-1391.3,0.00048219,120]
[355752252,1741531854492,-1115.63,0.00048219,120]
[355752253,1741531854502,-819.84,0.00048219,120]
[355752254,1741531854512,-1280.52,0.00048219,120]
[355752255,1741531854522,-540.19320595,0.00048219,120]
[355752256,1741531854533,-1940.94,0.00048219,120]
[355752257,1741531854543,-322.40967256,0.00048219,120]
[355752258,1741531854554,-566.25,0.00048219,120]
[355752259,1741531854565,-500.0,0.00048219,120]
[355752260,1741531854575,-500.0,0.00048219,120]
[355752261,1741531854585,-535.80556432,0.00048219,120]
[355752262,1741531854595,-1145.19,0.00048219,120]
[355752263,1741531854604,-500.0,0.00048219,120]
[355752264,1741531854615,-500.0,0.00048219,120]
[355752265,1741531854625,-500.0,0.00048219,120]
[355752266,1741531854635,-500.0,0.00048219,120]
[355752267,1741531854645,-500.0,0.00048219,120]
[355752268,1741531854656,-500.0,0.00048219,120]
[355752269,1741531854666,-500.0,0.00048219,120]
[355752270,1741531854676,-500.0,0.00048219,120]
[355752271,1741531854687,-1000.0,0.00048219,7]
[355752272,1741531854697,-500.0,0.00048219,120]
[355752273,1741531854707,-1231.5,0.00048219,120]
[355752274,1741531854718,-500.0,0.00048219,120]
[355752275,1741531854728,-500.0,0.00048219,120]
[355752276,1741531854738,-2555.83,0.00048219,120]
[355752277,1741531854748,-42195.45,0.00048219,7]
[355752278,1741531854758,-500.0,0.00048219,120]
[355752279,1741531854767,-500.0,0.00048219,120]
[355752280,1741531854778,-500.0,0.00048219,120]
[355752281,1741531854787,-1217.42,0.00048219,120]
[355752282,1741531854798,-500.0,0.00048219,120]
[355752283,1741531854808,-500.0,0.00048219,120]
[355752284,1741531854818,-500.0,0.00048219,120]
[355752285,1741531854828,-500.0,0.00048219,120]
[355752286,1741531854839,-500.0,0.00048219,120]
[355752287,1741531854849,-500.0,0.00048219,120]
[355752288,1741531854858,-582.08,0.00048219,120]
[355752289,1741531854868,-1910.18,0.00048219,60]
[355752290,1741531854877,-620.32,0.00048219,120]
[355752291,1741531854960,-381.90354737,0.00048219,120]
[355752292,1741531854971,-500.0,0.00048219,120]
[355752293,1741531854980,-500.0,0.00048219,120]
[355752294,1741531854990,-500.0,0.00048219,120]
[355752295,1741531854999,-592.78,0.00048219,120]
[355752296,1741531855009,-500.0,0.00048219,120]
[355752297,1741531855018,-500.0,0.00048219,120]
[355752298,1741531855028,-1365.16,0.00048219,120]
[355752299,1741531855038,-500.0,0.00048219,120]
[355752300,1741531855047,-500.0,0.00048219,120]
[355752301,1741531855057,-500.0,0.00048219,120]
[355752302,1741531855067,-677.35,0.00048219,120]
[355752303,1741531855076,-500.0,0.00048219,120]
[355752304,1741531855086,-2356.14,0.00048219,120]
[355752305,1741531855096,-666.65,0.00048219,120]
[355752306,1741531855106,-500.0,0.00048219,120]
[355752307,1741531855116,-500.0,0.00048219,120]
[355752308,1741531855126,-500.0,0.00048219,2]
[355752309,1741531855136,-717.43,0.00048219,120]
[355752310,1741531855149,-500.0,0.00048219,120]
[355752311,1741531855159,-588.41,0.00048219,120]
[355752312,1741531855169,-500.0,0.00048219,120]
[355752313,1741531855179,-500.0,0.00048219,120]
[355752314,1741531855190,-14938.38,0.00048219,2]
[355752315,1741531855200,-500.0,0.00048219,120]
[355752316,1741531855209,-500.0,0.00048219,120]
[355752317,1741531855219,-500.0,0.00048273,10]
[355752318,1741531855229,-150.0,0.00048273,10]
[355752319,1741531855239,-151.0,0.000483,120]
[355752320,1741531855249,-156.857475,0.0004835,90]
[355752321,1741531855259,-150.0,0.00048373,10]
[355752322,1741531855268,-1000.0,0.00048379,30]
[355752323,1741531855278,-257734.8630118,0.000484,120]
[355752324,1741531855287,-181.850551,0.000484,120]
[355752325,1741531855298,-151.0,0.000484,120]
[355752326,1741531855307,-151.0,0.000484,10]
[355752327,1741531855317,-496.0,0.000484,14]
[355752328,1741531855326,-55841.2,0.000485,120]
[355752329,1741531855336,-1956824.92,0.000485,120]
[355752330,1741531855346,-151.0,0.000485,120]
[355752331,1741531855356,-151.0,0.000485,120]
[355752332,1741531855365,-295.61698,0.000485,10]
[355752333,1741531855375,-420.78,0.000485,30]
[355752334,1741531855384,-618.201457,0.00048571,2]
[355752335,1741531855394,-200.116326,0.00048635,120]
[355752336,1741531855404,-3204.7842305,0.0004868,3]
[355752337,1741531855415,-160.0,0.00048683,3]
[355752338,1741531855424,-150.0,0.000487,2]
[355752339,1741531855434,-500.0,0.0004876,60]
[355752340,1741531855444,-500.0,0.00048767,120]
[355752341,1741531855454,-500.0,0.00048767,120]
[355752342,1741531855464,-500.0,0.00048767,120]
[355752343,1741531855474,-311.56167677,0.00048767,120]
[355752344,1741531855484,-1000.0,0.00048767,7]
[355752345,1741531855493,-500.0,0.00048767,120]
[355752346,1741531855504,-500.0,0.00048767,120]
[355752347,1741531855515,-827.49,0.00048767,120]
[355752348,1741531855527,-500.0,0.00048767,120]
[355752349,1741531855537,-500.0,0.00048767,120]
[355752350,1741531855548,-500.0,0.00048767,120]
[355752351,1741531855558,-793.97,0.00048767,120]
[355752352,1741531855567,-500.0,0.00048767,120]
[355752353,1741531855577,-500.0,0.00048767,120]
[355752354,1741531855586,-499.28307697,0.00048767,120]
[355752355,1741531855596,-500.0,0.00048767,120]
[355752356,1741531855606,-500.0,0.00048767,120]
[355752357,1741531855616,-500.0,0.00048767,120]
[355752358,1741531855625,-500.0,0.00048767,120]
[355752359,1741531855635,-500.0,0.00048767,120]
[355752360,1741531855645,-500.0,0.00048767,120]
[355752361,1741531855655,-477.21766797,0.00048767,120]
[355752362,1741531855665,-500.0,0.00048767,120]
[355752363,1741531855674,-504.71869473,0.00048767,120]
[355752364,1741531855684,-500.0,0.00048767,2]
[355752365,1741531855694,-500.0,0.00048767,2]
[355752366,1741531855704,-588.73,0.00048767,120]
[355752367,1741531855714,-372.59621275,0.00048767,120]
[355752368,1741531855723,-500.0,0.00048767,120]
[355752369,1741531855733,-500.0,0.00048767,120]
[355752370,1741531855744,-500.0,0.00048767,120]
[355752371,1741531855754,-500.0,0.00048767,120]
[355752372,1741531855764,-500.0,0.00048767,120]
[355752373,1741531855774,-500.0,0.00048767,120]
[355752374,1741531855783,-527.36,0.00048767,120]
[355752375,1741531855793,-500.0,0.00048767,120]
[355752376,1741531855804,-844.17,0.00048767,120]
[355752377,1741531855813,-500.0,0.00048767,120]
[355752378,1741531855823,-500.0,0.00048767,120]
[355752379,1741531855833,-500.0,0.00048767,120]
[355752380,1741531855843,-500.0,0.00048767,120]
[355752381,1741531855853,-500.0,0.00048767,120]
[355752382,1741531855863,-500.0,0.00048767,120]
[355752383,1741531855873,-271.51044023,0.00048767,120]
[355752384,1741531855883,-752.37,0.00048767,120]
[355752385,1741531855893,-504.70843553,0.00048767,15]
[355752386,1741531855903,-500.0,0.00048767,120]
[355752387,1741531855913,-500.0,0.00048767,120]
[355752388,1741531855923,-500.0,0.00048767,120]
[355752389,1741531855932,-760.69,0.00048767,120]
[355752390,1741531855942,-3717.7,0.00048767,120]
[355752391,1741531855951,-500.0,0.00048767,120]
[355752392,1741531855962,-500.0,0.00048767,120]
[355752393,1741531855971,-500.0,0.00048767,120]
[355752394,1741531855981,-500.0,0.00048767,120]
[355752395,1741531855990,-1627.71,0.00048767,120]
[355752396,1741531856000,-500.0,0.00048767,120]
[355752397,1741531856010,-500.0,0.00048767,2]
[355752398,1741531856019,-500.0,0.00048767,120]
[355752399,1741531856029,-500.0,0.00048767,120]
[355752400,1741531856038,-488.01069444,0.00048767,120]
[355752401,1741531856048,-500.0,0.00048767,120]
[355752402,1741531856057,-500.0,0.00048767,120]
[355752403,1741531856066,-500.0,0.00048767,120]
[355752404,1741531856146,-500.0,0.00048767,120]
[355752405,1741531856156,-500.0,0.00048767,120]
[355752406,1741531856166,-500.0,0.00048767,120]
[355752407,1741531856176,-500.0,0.00048767,120]
[355752408,1741531856187,-1086.99,0.00048767,120]
[355752409,1741531856197,-500.0,0.00048767,120]
[355752410,1741531856208,-500.0,0.00048767,120]
[355752411,1741531856219,-500.0,0.00048767,120]
[355752412,1741531856228,-500.0,0.00048767,120]
[355752413,1741531856239,-500.0,0.00048767,120]
[355752414,1741531856249,-500.0,0.00048767,120]
[355752415,1741531856258,-500.0,0.00048767,120]
[355752416,1741531856267,-500.0,0.00048767,120]
[355752417,1741531856277,-500.0,0.00048767,120]
[355752418,1741531856286,-500.0,0.00048767,120]
[355752419,1741531856296,-500.0,0.00048767,120]
[355752420,1741531856307,-182.89670673,0.00048767,120]
[355752421,1741531856317,-500.0,0.00048767,120]
[355752422,1741531856327,-500.0,0.00048767,120]
[355752423,1741531856337,-586.8,0.00048767,120]
[355752424,1741531856346,-500.0,0.00048767,120]
[355752425,1741531856356,-590.76,0.00048767,120]
[355752426,1741531856366,-500.0,0.00048767,120]
[355752427,1741531856376,-543.87475811,0.00048767,120]
[355752428,1741531856387,-536.77,0.00048767,120]
[355752429,1741531856397,-508.58618102,0.00048767,120]
[355752430,1741531856406,-508.28,0.00048767,120]
[355752431,1741531856416,-385.63934632,0.00048767,120]
[355752432,1741531856425,-500.0,0.00048767,120]
[355752433,1741531856435,-500.0,0.00048767,120]
[355752434,1741531856445,-1480.03,0.00048767,120]
[355752435,1741531856455,-513.164711,0.00048767,120]
[355752436,1741531856465,-971.24,0.00048767,120]
[355752437,1741531856475,-500.0,0.00048767,120]
[355752438,1741531856484,-500.0,0.00048767,120]
[355752439,1741531856494,-4435.87,0.00048767,120]
[355752440,1741531856503,-150.51,0.00048767,120]
[355752441,1741531856513,-150.51,0.00048767,2]
[355752442,1741531856522,-500.0,0.00048767,120]
[355752443,1741531856533,-500.0,0.00048767,120]
[355752444,1741531856542,-291.00774601,0.00048767,120]
[355752445,1741531856552,-999.0,0.00048767,120]
[355752446,1741531856561,-500.0,0.00048767,120]
[355752447,1741531856571,-562.58,0.00048767,120]
[355752448,1741531856580,-500.0,0.00048767,120]
[355752449,1741531856590,-3408.24,0.00048767,120]
[355752450,1741531856600,-8746.84,0.00048767,120]
[355752451,1741531856610,-500.0,0.00048767,120]
[355752452,1741531856619,-500.0,0.00048767,120]
[355752453,1741531856629,-565.34,0.00048767,120]
[355752454,1741531856639,-1391.3,0.00048767,120]
[355752455,1741531856649,-1115.63,0.00048767,120]
[355752456,1741531856660,-819.84,0.00048767,120]
[355752457,1741531856671,-1280.52,0.00048767,120]
[355752458,1741531856680,-1940.94,0.00048767,120]
[355752459,1741531856690,-566.25,0.00048767,120]
[355752460,1741531856702,-500.0,0.00048767,120]
[355752461,1741531856712,-500.0,0.00048767,120]
[355752462,1741531856722,-1145.19,0.00048767,120]
[355752463,1741531856732,-500.0,0.00048767,120]
[355752464,1741531856742,-500.0,0.00048767,120]
[355752465,1741531856752,-500.0,0.00048767,120]
[355752466,1741531856761,-500.0,0.00048767,120]
[355752467,1741531856771,-500.0,0.00048767,120]
[355752468,1741531856781,-527.60563211,0.00048767,120]
[355752469,1741531856791,-500.0,0.00048767,120]
[355752470,1741531856800,-500.0,0.00048767,120]
[355752471,1741531856810,-1000.0,0.00048767,7]
[355752472,1741531856820,-500.0,0.00048767,120]
[355752473,1741531856830,-1231.5,0.00048767,120]
[355752474,1741531856840,-500.0,0.00048767,120]
[355752475,1741531856852,-500.0,0.00048767,120]
[355752476,1741531856863,-2555.83,0.00048767,120]
[355752477,1741531856873,-42195.45,0.00048767,7]
[355752478,1741531856883,-500.0,0.00048767,120]
[355752479,1741531856893,-359.86852065,0.00048767,120]
[355752480,1741531856903,-500.0,0.00048767,120]
[355752481,1741531856912,-1217.42,0.00048767,120]
[355752482,1741531856923,-500.0,0.00048767,120]
[355752483,1741531856935,-500.0,0.00048767,120]
[355752484,1741531856946,-537.53910016,0.00048767,120]
[355752485,1741531856956,-500.0,0.00048767,120]
[355752486,1741531856968,-500.0,0.00048767,120]
[355752487,1741531856981,-500.0,0.00048767,120]
[355752488,1741531856991,-582.08,0.00048767,120]
[355752489,1741531857002,-1910.18,0.00048767,60]
[355752490,1741531857012,-620.32,0.00048767,120]
[355752491,1741531857021,-500.0,0.00048767,120]
[355752492,1741531857030,-500.0,0.00048767,120]
[355752493,1741531857040,-500.0,0.00048767,120]
[355752494,1741531857050,-592.78,0.00048767,120]
[355752495,1741531857060,-500.0,0.00048767,120]
[355752496,1741531857069,-500.0,0.00048767,120]
[355752497,1741531857083,-1365.16,0.00048767,120]
[355752498,1741531857097,-500.0,0.00048767,120]
[355752499,1741531857107,-500.0,0.00048767,120]
[355752500,1741531857117,-500.0,0.00048767,120]
[355752501,1741531857126,-677.35,0.00048767,120]
[355752502,1741531857136,-500.0,0.00048767,120]
[355752503,1741531857149,-2356.14,0.00048767,120]
[355752504,1741531857159,-666.65,0.00048767,120]
[355752505,1741531857168,-500.0,0.00048767,120]
[355752506,1741531857178,-500.0,0.00048767,120]
[355752507,1741531857188,-500.0,0.00048767,2]
[355752508,1741531857266,-500.0,0.00048767,120]
[355752509,1741531857279,-717.43,0.00048767,120]
[355752510,1741531857288,-588.41,0.00048767,120]
[355752511,1741531857298,-500.0,0.00048767,120]
[355752512,1741531857308,-500.0,0.00048767,120]
[355752513,1741531857318,-14938.38,0.00048767,2]
[355752514,1741531857327,-1000.0,0.00048767,120]
[355752515,1741531857337,-1000.0,0.00048767,120]
[355752516,1741531857346,-500.0,0.00048767,120]
[355752517,1741531857356,-156.80924409,0.00048767,120]
[355752518,1741531857366,-500.0,0.00048767,120]
[355752519,1741531857375,-150.51,0.00048767,120]
[355752520,1741531857384,-500.0,0.00048767,120]
[355752521,1741531857394,-500.0,0.00048794,2]
[355752522,1741531857404,-150.51,0.00048794,120]
[355752523,1741531857413,-500.0,0.00048794,120]
[355752524,1741531857423,-150.51,0.00048794,120]
[355752525,1741531857433,-696.01795553,0.00048794,120]
[355752526,1741531857443,-404.91867533,0.00048821,10]
[355752527,1741531857452,-210.0,0.00048821,10]
[355752528,1741531857461,-500.0,0.00048822,2]
[355752529,1741531857471,-272.30745219,0.00048822,120]
[355752530,1741531857481,-500.0,0.00048822,120]
[355752531,1741531857490,-251.5476889,0.00048822,120]
[355752532,1741531857500,-500.0,0.00048849,2]
[355752533,1741531857510,-757.68263009,0.00048849,120]
[355752534,1741531857520,-500.0,0.00048877,2]
[355752535,1741531857530,-513.63718343,0.00048894,10]
[355752536,1741531857540,-501.3007353,0.00048894,10]
[355752537,1741531857550,-500.0,0.00048894,3]
[355752538,1741531857560,-1111.61033219,0.00048894,10]
[355752539,1741531857570,-1000.0,0.00048894,10]
[355752540,1741531857580,-502.90138588,0.00048894,10]
[355752541,1741531857590,-617.28616402,0.00048894,10]
[355752542,1741531857599,-1000.0,0.00048894,2]
[355752543,1741531857608,-10460.88825047,0.00048899,2]
[355752544,1741531857619,-300.0,0.000489,26]
[355752545,1741531857628,-713.45,0.000489,30]
[355752546,1741531857638,-500.0,0.00048904,2]
[355752547,1741531857647,-250.0,0.00048921,10]
[355752548,1741531857657,-500.0,0.00048931,2]
[355752549,1741531857666,-500.0,0.00048959,2]
[355752550,1741531857676,-503.99558825,0.0004896,60]
[355752551,1741531857686,-218.550709,0.00048979,10]
[355752552,1741531857696,-1000.0,0.00048979,2]
[355752553,1741531857705,-500.0,0.00048986,2]
[355752554,1741531857715,-232.14293314,0.0004899,18]
[355752555,1741531857725,-2000.0,0.00049,50]
[355752556,1741531857735,-316351.02648688,0.00049,2]
[355752557,1741531858559,-499.58105022,0.00046575,120]
[355752558,1741531859102,-151.0,0.000424,120]
[355752559,1741531859114,-243.080467,0.000463,120]
[355752560,1741531859124,-0.41894978,0.00046575,120]
[355752561,1741531859134,-38.23950674,0.00046575,120]
[355752562,1741531859208,-125.29329684,0.00046575,120]
[355752563,1741531859281,-426.10719642,0.00046575,120]
[355752564,1741531859480,-500.0,0.00046575,120]
[355752565,1741531859501,-500.0,0.00046575,120]
[355752566,1741531859512,-500.0,0.00046575,120]
[355752567,1741531859522,-500.0,0.00046575,120]
[355752568,1741531859532,-500.0,0.00046575,120]
[355752569,1741531859542,-500.0,0.00046575,120]
[355752570,1741531859552,-500.0,0.00046575,120]
[355752571,1741531859562,-500.0,0.00046575,120]
[355752572,1741531859572,-500.0,0.00046575,120]
[355752573,1741531859581,-500.0,0.00046575,120]
[355752574,1741531859591,-500.0,0.00047123,2]
[355752575,1741531859601,-500.0,0.00047123,120]
[355752576,1741531859611,-155.96,0.00047123,120]
[355752577,1741531859620,-500.0,0.00047671,120]
[355752578,1741531859630,-500.0,0.00047671,2]
[355752579,1741531859640,-500.0,0.00047885,6]
[355752580,1741531859650,-500.0,0.00048022,6]
[355752581,1741531859660,-500.0,0.00048159,6]
[355752582,1741531859670,-508.26965645,0.00048219,2]
[355752583,1741531859680,-500.0,0.00048219,120]
[355752584,1741531859689,-500.0,0.00048296,6]
[355752585,1741531859699,-150.51,0.00048767,2]
[355752586,1741531859709,-500.0,0.00048767,120]
[355752587,1741531859719,-140768.51193359,0.00049,2]
[355752588,1741531859732,-4937.25,0.00049,2]
[355752589,1741531859866,-151.0,0.00046531,2]
[355752590,1741531859875,-500.0,0.00046575,120]
[355752591,1741531859885,-500.0,0.00046575,120]
[355752592,1741531859895,-500.0,0.00046575,120]
[355752593,1741531859904,-500.0,0.00046575,120]
[355752594,1741531859914,-500.0,0.00046575,120]
[355752595,1741531859924,-500.0,0.00046575,120]
[355752596,1741531859934,-500.0,0.00046575,120]
[355752597,1741531859943,-500.0,0.00046575,2]
[355752598,1741531859953,-500.0,0.00046575,120]
[355752599,1741531859962,-500.0,0.00047123,2]
[355752600,1741531859972,-500.0,0.00048433,6]
[355752601,1741531859982,-500.0,0.0004857,6]
[355752602,1741531859992,-35738.79999303,0.00049,2]
[355752606,1741532640817,5000.0,0.000275,3]
[355752607,1741532650007,2810.32380648,0.000275,3]
[355752609,1741532772194,-670.64384037,0.00028,10]
[355752610,1741532772222,-500.0,0.00028,10]
[355752611,1741532772248,-500.0,0.00028,10]
[355752612,1741532772274,-899.5059018,0.00028,10]
[355752613,1741532772299,-500.0,0.00028,10]
[355752614,1741532772325,-710.4343693,0.00028,10]
[355752615,1741532772358,-297.99655969,0.00028873,5]
[355752616,1741532772383,-500.0,0.00028873,5]
[355752617,1741532772407,-825.98,0.00028887,3]
[355752618,1741532772432,-1686.74887223,0.000289,5]
[355752619,1741532772459,-500.0,0.0002956,5]
[355752620,1741532772484,-201.22870177,0.0002956,3]
[355752621,1741532772509,-218.550709,0.0002956,5]
[355752622,1741532772534,-500.0,0.0002956,5]
[355752623,1741532772559,-500.0,0.0002956,5]
[355752624,1741532772583,-500.0,0.0002956,5]
[355752625,1741532772606,-500.0,0.0002956,5]
[355752626,1741532772631,-500.0,0.0002956,5]
[355752627,1741532772655,-502.09756647,0.0002956,5]
[355752628,1741532772679,-194.58500786,0.0002956,5]
[355752629,1741532772703,-160.5907278,0.0002956,5]
[355752630,1741532772727,-500.0,0.0002956,5]
[355752631,1741532772770,-500.0,0.0002956,5]
[355752632,1741532772809,-501.63431964,0.0002956,5]
[355752633,1741532772846,-500.75272524,0.0002956,5]
[355752634,1741532830742,500.0,0.0002962,5]
[355752635,1741532832518,500.0,0.0002962,5]
[355752636,1741532834449,500.0,0.0002962,5]
[355752637,1741532835896,500.0,0.0002962,5]
[355752638,1741532839147,-300.0,0.00026787,2]
[355752639,1741532839172,-10000.0,0.00026788,2]
[355752640,1741532839198,-5706.7964153,0.00027088,2]
[355752641,1741532839222,-180.689601,0.00027412,2]
[355752642,1741532839246,-1020.37595863,0.000278,2]
[355752643,1741532839268,-1700.0,0.00028,2]
[355752644,1741532839292,-2108.47488411,0.0002802,2]
[355752645,1741532839315,-500.0,0.0002802,2]
[355752646,1741532839339,-500.0,0.0002802,2]
[355752647,1741532839361,-500.0,0.0002802,2]
[355752648,1741532839383,-500.0,0.0002802,2]
[355752649,1741532839406,-500.0,0.0002802,2]
[355752650,1741532839427,-478.58465262,0.0002802,2]
[355752651,1741532839450,-229.02390673,0.0002802,2]
[355752652,1741532839474,-978.05139612,0.0002802,2]
[355752653,1741532839499,-500.0,0.0002802,2]
[355752654,1741532839523,-500.0,0.0002802,2]
[355752655,1741532839546,-500.0,0.00028394,2]
[355752656,1741532839569,-500.0,0.00028394,2]
[355752657,1741532839591,-346.01594902,0.00028394,2]
[355752658,1741532848095,-554.12151914,0.0002802,2]
[355752659,1741532851098,-180.10413916,0.0002802,2]
[355752660,1741532851122,-944.98972117,0.0002802,2]
[355752661,1741532851146,-3.98405098,0.00028394,2]
[355752662,1741532851172,-500.0,0.00028394,2]
[355752663,1741532851199,-500.0,0.00028394,2]
[355752664,1741532851224,-500.0,0.00028394,2]
[355752665,1741532851250,-500.0,0.00028394,2]
[355752666,1741532851275,-500.0,0.00028394,2]
[355752667,1741532851299,-500.0,0.00028394,2]
[355752668,1741532851332,-858.78830429,0.00028394,2]
[355752669,1741532853091,-210.5927274,0.00028394,2]
[355752670,1741532853118,-500.0,0.00028394,2]
[355752671,1741532853145,-500.0,0.00028394,2]
[355752672,1741532853170,-500.0,0.00028394,2]
[355752673,1741532853197,-500.0,0.00028394,2]
[355752674,1741532853223,-404.40496379,0.00028394,2]
[355752675,1741532853248,-500.0,0.00028394,2]
[355752676,1741532853280,-1069.38103169,0.00028394,2]
[355752677,1741532853303,-500.0,0.00028394,2]
[355752678,1741532853327,-191.82945543,0.00028394,2]
[355752679,1741532853351,-500.0,0.00028394,2]
[355752680,1741532853375,-500.0,0.00028394,2]
[355752681,1741532853400,-500.0,0.00028394,2]
[355752682,1741532853424,-500.0,0.00028394,2]
[355752683,1741532853456,-1069.38103169,0.00028394,2]
[355752684,1741532853482,-500.0,0.00028394,2]
[355752685,1741532853505,-500.0,0.00028394,2]
[355752686,1741532853530,-399.37594121,0.00028394,2]
[355752687,1741532853554,-500.0,0.00028394,2]
[355752688,1741532853581,-500.0,0.00028394,2]
[355752689,1741532853604,-500.0,0.00028394,2]
[355752690,1741532853629,-500.0,0.00028394,2]
[355752691,1741532853663,-1069.38103169,0.00028394,2]
[355752692,1741532853687,-242.13118008,0.00028394,2]
[355752693,1741532882578,1676.67836276,0.000299,5]
[355752694,1741532889595,500.0,0.0002962,5]
[355752695,1741532891379,1802.0363476,0.0003,3]
[355752696,1741532947056,500.0,0.00028373,5]
[355752697,1741532947112,-1715.57710066,0.00026988,2]
[355752698,1741532947134,-1727.88402541,0.0002746,2]
[355752699,1741532947156,-287.500388,0.00027566,2]
[355752700,1741532947179,-300.0,0.00028382,2]
[355752701,1741532947202,-500.0,0.00028383,2]
[355752702,1741532947226,-500.0,0.00028383,2]
[355752703,1741532947249,-306.15421205,0.00028383,2]
[355752704,1741532947277,-810.63359726,0.00028383,2]
[355752705,1741532947301,-211.60055153,0.00028383,2]
[355752706,1741532947325,-500.0,0.00028383,2]
[355752707,1741532947350,-488.81954902,0.00028383,2]
[355752708,1741532947375,-500.0,0.00028383,2]
[355752709,1741532947399,-500.0,0.00028383,2]
[355752710,1741532947428,-810.63359726,0.00028383,2]
[355752711,1741532947452,-500.0,0.00028383,2]
[355752712,1741532947476,-500.0,0.00028383,2]
[355752713,1741532947501,-500.0,0.00028383,2]
[355752714,1741532947527,-500.0,0.00028383,2]
[355752715,1741532947556,-810.63359726,0.00028383,2]
[355752716,1741532947581,-500.0,0.00028383,2]
[355752717,1741532947605,-500.0,0.00028383,2]
[355752718,1741532947628,-500.0,0.00028383,2]
[355752719,1741532947651,-500.0,0.00028383,2]
[355752720,1741532947678,-810.63359726,0.00028383,2]
[355752721,1741532947705,-500.0,0.00028383,2]
[355752722,1741532947742,-500.0,0.00028383,2]
[355752723,1741532947781,-810.63359726,0.00028383,2]
[355752724,1741532947819,-500.0,0.00028383,2]
[355752725,1741532947853,-500.0,0.00028383,2]
[355752726,1741532947890,-810.63359726,0.00028383,2]
[355752727,1741532947925,-500.0,0.00028383,2]
[355752728,1741532947961,-500.0,0.00028383,2]
[355752729,1741532947993,-500.0,0.00028383,2]
[355752730,1741532948035,-810.63359726,0.00028383,2]
[355752731,1741532948068,-500.0,0.00028383,2]
[355752732,1741532948107,-810.63359726,0.00028383,2]
[355752733,1741532948137,-500.0,0.00028383,2]
[355752734,1741532948175,-500.0,0.00028383,2]
[355752735,1741532948208,-810.63359726,0.00028383,2]
[355752736,1741532948241,-500.0,0.00028383,2]
[355752737,1741532948276,-810.63359726,0.00028383,2]
[355752738,1741532948309,-500.0,0.00028383,2]
[355752739,1741532948340,-500.0,0.00028383,2]
[355752740,1741532948377,-810.63359726,0.00028383,2]
[355752741,1741532948409,-500.0,0.00028383,2]
[355752742,1741532948441,-500.0,0.00028383,2]
[355752743,1741532948478,-810.63359726,0.00028383,2]
[355752744,1741532948510,-500.0,0.00028383,2]
[355752745,1741532948545,-500.0,0.00028383,2]
[355752746,1741532948580,-810.63359726,0.00028383,2]
[355752747,1741532948612,-500.0,0.00028383,2]
[355752748,1741532948648,-810.63359726,0.00028383,2]
[355752749,1741532948677,-500.0,0.00028383,2]
[355752750,1741532948709,-500.0,0.00028383,2]
[355752751,1741532948744,-810.63359726,0.00028383,2]
[355752752,1741532948775,-500.0,0.00028383,2]